[Event "*** Titled Tuesday Blitz"]
[Site "Chess.com"]
[Date "2020.04.07"]
[Round "3"]
[White "imdvb6307"]
[Black "babadroga92"]
[Result "0-1"]
[WhiteElo "2404"]
[BlackElo "2693"]
[TimeControl "180+1"]
[EndTime "13:29:37 PDT"]
[Termination "babadroga92 won on time"]

1. c4 {[%clk 0:02:59.8]} 1... e5 {[%clk 0:02:59.3]} 2. Nc3 {[%clk 0:02:59.1]}
2... Nf6 {[%clk 0:02:59.5]} 3. Nf3 {[%clk 0:02:58.7]} 3... Nc6 {[%clk
0:02:59.7]} 4. e3 {[%clk 0:02:58.6]} 4... Bb4 {[%clk 0:03:00.2]} 5. Qc2 {[%clk
0:02:58.5]} 5... O-O {[%clk 0:03:00.7]} 6. Nd5 {[%clk 0:02:58.4]} 6... Bc5
{[%clk 0:03:01.1]} 7. a3 {[%clk 0:02:58]} 7... a5 {[%clk 0:02:59.5]} 8. Bd3
{[%clk 0:02:57.2]} 8... h6 {[%clk 0:02:54.6]} 9. b3 {[%clk 0:02:56.6]} 9... d6
{[%clk 0:02:54.2]} 10. O-O {[%clk 0:02:50.6]} 10... Bg4 {[%clk 0:02:50.9]} 11.
Nxf6+ {[%clk 0:02:45.9]} 11... Qxf6 {[%clk 0:02:50.1]} 12. Be4 {[%clk
0:02:45.8]} 12... Rab8 {[%clk 0:02:38.5]} 13. Bb2 {[%clk 0:02:41.2]} 13... Bh5
{[%clk 0:02:27]} 14. Rad1 {[%clk 0:02:04.6]} 14... Bb6 {[%clk 0:02:08.6]} 15.
Qc3 {[%clk 0:01:34.4]} 15... Qe7 {[%clk 0:01:56]} 16. d4 {[%clk 0:01:29.7]}
16... exd4 {[%clk 0:01:50.7]} 17. Nxd4 {[%clk 0:00:58.1]} 17... Nxd4 {[%clk
0:01:44.5]} 18. Rxd4 {[%clk 0:00:56.8]} 18... Bxd4 {[%clk 0:01:41.9]} 19. Qxd4
{[%clk 0:00:56.2]} 19... f6 {[%clk 0:01:41.1]} 20. Bc2 {[%clk 0:00:24.3]} 20...
Qe5 {[%clk 0:01:14.1]} 21. Bc3 {[%clk 0:00:13.6]} 21... Qxd4 {[%clk 0:01:10.4]}
22. exd4 {[%clk 0:00:13.4]} 22... b6 {[%clk 0:01:08.9]} 23. f3 {[%clk
0:00:13.3]} 23... Rfe8 {[%clk 0:01:07.4]} 24. Kf2 {[%clk 0:00:13.1]} 24... Kf7
{[%clk 0:01:06]} 25. Be4 {[%clk 0:00:10.4]} 25... Bg6 {[%clk 0:01:01.6]} 26.
Bd5+ {[%clk 0:00:10.3]} 26... Kf8 {[%clk 0:01:02.1]} 27. Rc1 {[%clk 0:00:09.8]}
27... Re7 {[%clk 0:00:58.8]} 28. b4 {[%clk 0:00:09.6]} 28... axb4 {[%clk
0:00:57]} 29. axb4 {[%clk 0:00:09.7]} 29... Bf7 {[%clk 0:00:56.1]} 30. Bxf7
{[%clk 0:00:08.5]} 30... Kxf7 {[%clk 0:00:57]} 31. Ra1 {[%clk 0:00:08.1]} 31...
Rbe8 {[%clk 0:00:56.3]} 32. Ra2 {[%clk 0:00:07.9]} 32... Ke6 {[%clk 0:00:54.8]}
33. d5+ {[%clk 0:00:07.5]} 33... Kd7 {[%clk 0:00:54.4]} 34. b5 {[%clk
0:00:06.6]} 34... Kc8 {[%clk 0:00:52.6]} 35. Bd2 {[%clk 0:00:05]} 35... Kb7
{[%clk 0:00:52.2]} 36. Kf1 {[%clk 0:00:04.7]} 36... Ra8 {[%clk 0:00:52.3]} 37.
Rxa8 {[%clk 0:00:04.4]} 37... Kxa8 {[%clk 0:00:53.2]} 38. Kf2 {[%clk 0:00:04.4]}
38... Kb7 {[%clk 0:00:53.8]} 39. g4 {[%clk 0:00:03.3]} 39... Kc8 {[%clk
0:00:52.7]} 40. h4 {[%clk 0:00:03.1]} 40... g5 {[%clk 0:00:50.7]} 41. h5 {[%clk
0:00:02]} 41... f5 {[%clk 0:00:43.8]} 42. Bc3 {[%clk 0:00:01.3]} 42... fxg4
{[%clk 0:00:42.6]} 0-1

[Event "*** Titled Tuesday Blitz"]
[Site "Chess.com"]
[Date "2020.04.07"]
[Round "3"]
[White "Jospem"]
[Black "chessdjw"]
[Result "1-0"]
[WhiteElo "2915"]
[BlackElo "2650"]
[TimeControl "180+1"]
[EndTime "13:29:38 PDT"]
[Termination "Jospem won by resignation"]

1. Nf3 {[%clk 0:03:00.9]} 1... d5 {[%clk 0:02:59.1]} 2. c4 {[%clk 0:03:00.6]}
2... e6 {[%clk 0:02:56.5]} 3. g3 {[%clk 0:03:00.5]} 3... dxc4 {[%clk 0:02:55.6]}
4. Bg2 {[%clk 0:03:01.4]} 4... a6 {[%clk 0:02:54.5]} 5. O-O {[%clk 0:02:59.7]}
5... Nf6 {[%clk 0:02:55.1]} 6. a4 {[%clk 0:02:53.4]} 6... Nc6 {[%clk 0:02:53]}
7. Qc2 {[%clk 0:02:51.2]} 7... Na5 {[%clk 0:02:38.6]} 8. Na3 {[%clk 0:02:46.2]}
8... Bxa3 {[%clk 0:02:22.4]} 9. bxa3 {[%clk 0:02:44.2]} 9... O-O {[%clk
0:02:18.3]} 10. Bb2 {[%clk 0:02:42.2]} 10... Bd7 {[%clk 0:02:13.6]} 11. Ne5
{[%clk 0:02:35.3]} 11... Qe8 {[%clk 0:02:13.2]} 12. Nxd7 {[%clk 0:02:33.5]}
12... Qxd7 {[%clk 0:02:12.7]} 13. Rad1 {[%clk 0:02:32.7]} 13... Qe7 {[%clk
0:01:48.9]} 14. Bc3 {[%clk 0:02:19.8]} 14... Nb3 {[%clk 0:01:29.8]} 15. d3
{[%clk 0:01:51.2]} 15... cxd3 {[%clk 0:01:22.9]} 16. Rxd3 {[%clk 0:01:48.1]}
16... Nc5 {[%clk 0:01:08]} 17. Bb4 {[%clk 0:01:39.6]} 17... Nfd7 {[%clk
0:00:53.8]} 18. Rxd7 {[%clk 0:01:32.8]} 18... Qxd7 {[%clk 0:00:53.3]} 19. Bxc5
{[%clk 0:01:33.4]} 19... Rfb8 {[%clk 0:00:51.8]} 20. Rd1 {[%clk 0:01:33.5]}
20... Qe8 {[%clk 0:00:52.1]} 21. h4 {[%clk 0:01:27.5]} 21... a5 {[%clk
0:00:52.1]} 22. Bd4 {[%clk 0:01:26.1]} 22... c6 {[%clk 0:00:46.8]} 23. Be4
{[%clk 0:01:26]} 23... h6 {[%clk 0:00:41.9]} 24. Bb6 {[%clk 0:01:25.7]} 24...
Qe7 {[%clk 0:00:38.8]} 25. Qc3 {[%clk 0:01:15.6]} 25... Re8 {[%clk 0:00:36.7]}
26. Bb1 {[%clk 0:01:12.1]} 26... Ra6 {[%clk 0:00:32.9]} 27. Bc5 {[%clk
0:01:10.7]} 27... Qf6 {[%clk 0:00:31.3]} 28. Qc2 {[%clk 0:01:07.3]} 28... g6
{[%clk 0:00:29.8]} 29. Bd4 {[%clk 0:01:07]} 29... e5 {[%clk 0:00:29.6]} 30. Ba1
{[%clk 0:01:05.5]} 30... Raa8 {[%clk 0:00:28.9]} 31. Rd3 {[%clk 0:00:55.9]}
31... Qe7 {[%clk 0:00:17.1]} 32. Re3 {[%clk 0:00:53.3]} 32... Qd6 {[%clk
0:00:14.7]} 33. h5 {[%clk 0:00:51.4]} 33... Rad8 {[%clk 0:00:13.5]} 34. hxg6
{[%clk 0:00:49.9]} 34... Qd1+ {[%clk 0:00:14]} 35. Kg2 {[%clk 0:00:50.3]} 35...
Qxc2 {[%clk 0:00:14.2]} 36. Bxc2 {[%clk 0:00:51.2]} 36... fxg6 {[%clk
0:00:11.3]} 37. Bxg6 {[%clk 0:00:50.7]} 37... Re6 {[%clk 0:00:11.5]} 38. Bd3
{[%clk 0:00:51]} 38... Rde8 {[%clk 0:00:10.3]} 39. Bc4 {[%clk 0:00:50.9]} 39...
Kg7 {[%clk 0:00:10.9]} 40. Bxe6 {[%clk 0:00:50.4]} 40... Rxe6 {[%clk 0:00:11.8]}
41. Rxe5 {[%clk 0:00:51.3]} 41... Kf7 {[%clk 0:00:11.3]} 42. Rxa5 {[%clk
0:00:45.3]} 42... Rxe2 {[%clk 0:00:10.2]} 43. Ra7 {[%clk 0:00:45.7]} 43... Rb2
{[%clk 0:00:07.8]} 44. Bxb2 {[%clk 0:00:45.4]} 1-0

[Event "*** Titled Tuesday Blitz"]
[Site "Chess.com"]
[Date "2020.04.07"]
[Round "3"]
[White "Chessterra87"]
[Black "manubibi"]
[Result "1-0"]
[WhiteElo "2308"]
[BlackElo "2546"]
[TimeControl "180+1"]
[EndTime "13:29:38 PDT"]
[Termination "Chessterra87 won by resignation"]

1. e4 {[%clk 0:03:00.9]} 1... c5 {[%clk 0:02:55.8]} 2. c3 {[%clk 0:02:59.6]}
2... d5 {[%clk 0:02:51.4]} 3. exd5 {[%clk 0:02:59.6]} 3... Qxd5 {[%clk
0:02:52.3]} 4. d4 {[%clk 0:02:59.9]} 4... Nf6 {[%clk 0:02:45.5]} 5. Nf3 {[%clk
0:03:00]} 5... e6 {[%clk 0:02:43]} 6. Be3 {[%clk 0:02:58.8]} 6... cxd4 {[%clk
0:02:41.2]} 7. Nxd4 {[%clk 0:02:56.4]} 7... Nc6 {[%clk 0:02:34.9]} 8. Nxc6
{[%clk 0:02:53.3]} 8... Qxc6 {[%clk 0:02:33.8]} 9. Qb3 {[%clk 0:02:44.5]} 9...
Bd7 {[%clk 0:02:32]} 10. Nd2 {[%clk 0:02:41.4]} 10... Nd5 {[%clk 0:02:28.3]} 11.
Bd4 {[%clk 0:02:35.9]} 11... Bc5 {[%clk 0:01:55.9]} 12. Bxc5 {[%clk 0:02:28.9]}
12... Qxc5 {[%clk 0:01:56.2]} 13. Ne4 {[%clk 0:02:28.1]} 13... Qc7 {[%clk
0:01:52.5]} 14. Bb5 {[%clk 0:02:15.3]} 14... O-O {[%clk 0:01:43.4]} 15. Bxd7
{[%clk 0:02:13.7]} 15... Qxd7 {[%clk 0:01:43.3]} 16. Rd1 {[%clk 0:02:13.9]}
16... Qc6 {[%clk 0:01:42.5]} 17. O-O {[%clk 0:01:58.2]} 17... Rfd8 {[%clk
0:01:31.2]} 18. c4 {[%clk 0:01:49.5]} 18... Nf4 {[%clk 0:01:29]} 19. Qf3 {[%clk
0:01:49.6]} 19... Ng6 {[%clk 0:01:23.3]} 20. b3 {[%clk 0:01:47.1]} 20... h6
{[%clk 0:01:12.6]} 21. h3 {[%clk 0:01:35.5]} 21... f5 {[%clk 0:01:12]} 22. Nd2
{[%clk 0:01:28]} 22... Qxf3 {[%clk 0:01:09.3]} 23. Nxf3 {[%clk 0:01:28.9]} 23...
e5 {[%clk 0:01:09.9]} 24. g3 {[%clk 0:01:21.1]} 24... e4 {[%clk 0:01:08.7]} 25.
Nd4 {[%clk 0:01:21.3]} 25... f4 {[%clk 0:00:57]} 26. Ne6 {[%clk 0:01:15.3]}
26... Rxd1 {[%clk 0:00:54.5]} 27. Rxd1 {[%clk 0:01:16.2]} 27... fxg3 {[%clk
0:00:49.6]} 28. Rd7 {[%clk 0:01:09.5]} 28... gxf2+ {[%clk 0:00:40.5]} 29. Kxf2
{[%clk 0:01:08.2]} 29... Ne5 {[%clk 0:00:16.6]} 30. Rxg7+ {[%clk 0:01:06.2]}
30... Kh8 {[%clk 0:00:16.9]} 31. Rxb7 {[%clk 0:01:04.6]} 31... Re8 {[%clk
0:00:16.9]} 32. Ng7 {[%clk 0:01:01.2]} 32... Rg8 {[%clk 0:00:07.9]} 33. Ne6
{[%clk 0:00:47.2]} 33... Nd3+ {[%clk 0:00:08.6]} 34. Ke3 {[%clk 0:00:47.1]}
34... Rg6 {[%clk 0:00:09.1]} 35. Rb8+ {[%clk 0:00:42.5]} 35... Rg8 {[%clk
0:00:08.3]} 36. Rxg8+ {[%clk 0:00:42.1]} 36... Kxg8 {[%clk 0:00:09.2]} 37. Kxe4
{[%clk 0:00:42.3]} 37... Nc1 {[%clk 0:00:09.8]} 38. c5 {[%clk 0:00:40.7]} 38...
Nxa2 {[%clk 0:00:09.5]} 39. c6 {[%clk 0:00:41.2]} 39... Nc3+ {[%clk 0:00:09.3]}
40. Ke5 {[%clk 0:00:41.3]} 40... Nb5 {[%clk 0:00:07.3]} 41. c7 {[%clk
0:00:41.6]} 41... Nxc7 {[%clk 0:00:06.8]} 42. Nxc7 {[%clk 0:00:42.5]} 1-0

[Event "*** Titled Tuesday Blitz"]
[Site "Chess.com"]
[Date "2020.04.07"]
[Round "3"]
[White "Charlottemillard17"]
[Black "BabyFacedAssasin"]
[Result "0-1"]
[WhiteElo "1319"]
[BlackElo "2311"]
[TimeControl "180+1"]
[EndTime "13:29:41 PDT"]
[Termination "BabyFacedAssasin won on time"]

1. e4 {[%clk 0:03:00.5]} 1... e6 {[%clk 0:03:00]} 2. d4 {[%clk 0:02:59.6]} 2...
d5 {[%clk 0:03:00.4]} 3. Nd2 {[%clk 0:02:57.6]} 3... c5 {[%clk 0:03:00]} 4. c3
{[%clk 0:02:56.5]} 4... cxd4 {[%clk 0:02:59.5]} 5. cxd4 {[%clk 0:02:52.7]} 5...
dxe4 {[%clk 0:02:59.5]} 6. Nxe4 {[%clk 0:02:52]} 6... Nf6 {[%clk 0:02:59.2]} 7.
Bd3 {[%clk 0:02:50.7]} 7... Nc6 {[%clk 0:02:54.3]} 8. Nf3 {[%clk 0:02:48.5]}
8... Bb4+ {[%clk 0:02:53.7]} 9. Bd2 {[%clk 0:02:16.3]} 9... Bxd2+ {[%clk
0:02:52.9]} 10. Qxd2 {[%clk 0:02:15.5]} 10... O-O {[%clk 0:02:50.7]} 11. Bc2
{[%clk 0:02:12.5]} 11... g6 {[%clk 0:02:23.7]} 12. Qh6 {[%clk 0:01:56]} 12...
Nxe4 {[%clk 0:02:15.4]} 13. Bxe4 {[%clk 0:01:54.6]} 13... f6 {[%clk 0:02:03.3]}
14. Bxg6 {[%clk 0:01:38.4]} 14... Qe7 {[%clk 0:01:50.3]} 15. Bd3 {[%clk
0:01:23.9]} 15... b6 {[%clk 0:01:38.8]} 16. O-O {[%clk 0:01:00]} 16... Bb7
{[%clk 0:01:37.9]} 17. d5 {[%clk 0:00:51.3]} 17... Nb4 {[%clk 0:01:30.7]} 18.
Be4 {[%clk 0:00:33.7]} 18... Bxd5 {[%clk 0:01:22.4]} 19. Bb1 {[%clk 0:00:19.9]}
19... Bxf3 {[%clk 0:01:19]} 20. gxf3 {[%clk 0:00:19.4]} 20... Qg7+ {[%clk
0:01:14.8]} 21. Qxg7+ {[%clk 0:00:19.4]} 21... Kxg7 {[%clk 0:01:15.7]} 22. Kh1
{[%clk 0:00:16.4]} 22... Rg8 {[%clk 0:01:10.2]} 23. Be4 {[%clk 0:00:14.3]} 23...
Rad8 {[%clk 0:01:05]} 24. Rg1+ {[%clk 0:00:14.2]} 24... Kh6 {[%clk 0:01:03.8]}
25. Rxg8 {[%clk 0:00:14.7]} 25... Rxg8 {[%clk 0:01:04.7]} 26. a3 {[%clk
0:00:13.4]} 26... Nd5 {[%clk 0:01:01.7]} 27. Bxd5 {[%clk 0:00:13.2]} 27... exd5
{[%clk 0:01:01.6]} 28. Rd1 {[%clk 0:00:13.7]} 28... Rd8 {[%clk 0:01:00.7]} 29.
Rd4 {[%clk 0:00:13.8]} 29... Kg5 {[%clk 0:01:00.3]} 30. Kg2 {[%clk 0:00:13.1]}
30... Kf5 {[%clk 0:01:00.3]} 31. Kf1 {[%clk 0:00:10.5]} 31... Ke5 {[%clk
0:00:59.6]} 32. Rh4 {[%clk 0:00:09]} 32... Rd7 {[%clk 0:00:58.9]} 33. Ke2 {[%clk
0:00:08.5]} 33... Rc7 {[%clk 0:00:55.9]} 34. Kd3 {[%clk 0:00:08.3]} 34... a5
{[%clk 0:00:53.2]} 35. f4+ {[%clk 0:00:08.1]} 35... Ke6 {[%clk 0:00:49]} 36. Kd4
{[%clk 0:00:06.7]} 36... Rc4+ {[%clk 0:00:48.2]} 37. Kd3 {[%clk 0:00:06.7]}
37... b5 {[%clk 0:00:41.6]} 0-1

[Event "*** Titled Tuesday Blitz"]
[Site "Chess.com"]
[Date "2020.04.07"]
[Round "3"]
[White "GM-AndreyOrlov"]
[Black "AliKa2810"]
[Result "0-1"]
[WhiteElo "2705"]
[BlackElo "2607"]
[TimeControl "180+1"]
[EndTime "13:29:42 PDT"]
[Termination "AliKa2810 won by resignation"]

1. e4 {[%clk 0:02:59.5]} 1... e6 {[%clk 0:03:00.2]} 2. d4 {[%clk 0:02:59.2]}
2... d5 {[%clk 0:03:00.9]} 3. Nc3 {[%clk 0:02:59.8]} 3... Nf6 {[%clk 0:03:01.1]}
4. Bd3 {[%clk 0:02:59.6]} 4... c5 {[%clk 0:02:52.7]} 5. exd5 {[%clk 0:02:56.9]}
5... cxd4 {[%clk 0:02:45.2]} 6. Bb5+ {[%clk 0:02:54.1]} 6... Bd7 {[%clk
0:02:40.2]} 7. Bxd7+ {[%clk 0:02:49.9]} 7... Qxd7 {[%clk 0:02:36.1]} 8. dxe6
{[%clk 0:02:49.1]} 8... Qxe6+ {[%clk 0:02:32.2]} 9. Nce2 {[%clk 0:02:49.1]} 9...
Nc6 {[%clk 0:02:28]} 10. Nf3 {[%clk 0:02:49.2]} 10... O-O-O {[%clk 0:02:26.5]}
11. O-O {[%clk 0:02:48.9]} 11... Bc5 {[%clk 0:02:20.6]} 12. Nf4 {[%clk
0:02:48.8]} 12... Qd7 {[%clk 0:02:18.2]} 13. Nd3 {[%clk 0:02:49]} 13... Bd6
{[%clk 0:02:16.1]} 14. Bd2 {[%clk 0:02:42.4]} 14... Ne4 {[%clk 0:02:04.6]} 15.
Re1 {[%clk 0:02:39.9]} 15... f5 {[%clk 0:02:02.7]} 16. b4 {[%clk 0:02:40.1]}
16... Qc7 {[%clk 0:01:41]} 17. b5 {[%clk 0:02:38.4]} 17... Ne7 {[%clk 0:01:40]}
18. h3 {[%clk 0:02:30.9]} 18... Nd5 {[%clk 0:01:38.7]} 19. a4 {[%clk 0:01:43]}
19... g5 {[%clk 0:01:27.7]} 20. a5 {[%clk 0:01:42.7]} 20... g4 {[%clk
0:01:27.3]} 21. b6 {[%clk 0:01:43.2]} 21... Qb8 {[%clk 0:01:24.3]} 22. bxa7
{[%clk 0:01:42.3]} 22... Qxa7 {[%clk 0:01:23.9]} 23. a6 {[%clk 0:01:29.1]} 23...
gxf3 {[%clk 0:01:21.2]} 24. Qxf3 {[%clk 0:01:29.3]} 24... Nxd2 {[%clk
0:01:18.6]} 25. Qxf5+ {[%clk 0:01:29.3]} 25... Kb8 {[%clk 0:01:18.4]} 26. Ne5
{[%clk 0:01:14.6]} 26... Bxe5 {[%clk 0:01:14.4]} 27. Qxe5+ {[%clk 0:01:13.4]}
27... Nc7 {[%clk 0:01:13.3]} 28. Qf4 {[%clk 0:01:04.3]} 28... Nc4 {[%clk
0:01:09.9]} 29. axb7 {[%clk 0:01:03.4]} 29... Qxb7 {[%clk 0:01:08.8]} 30. Reb1
{[%clk 0:01:02.7]} 30... Nb6 {[%clk 0:01:08.6]} 31. Rb3 {[%clk 0:00:55.6]} 31...
Rhf8 {[%clk 0:01:03.8]} 32. Qh2 {[%clk 0:00:53.4]} 32... Rf6 {[%clk 0:01:01.8]}
33. Rab1 {[%clk 0:00:53.2]} 33... Kc8 {[%clk 0:00:56.2]} 34. Qe5 {[%clk
0:00:51.2]} 34... Rfd6 {[%clk 0:00:49.3]} 35. Qf5+ {[%clk 0:00:48.3]} 35... Ne6
{[%clk 0:00:45.7]} 36. g3 {[%clk 0:00:39]} 36... Rf8 {[%clk 0:00:43.7]} 37. Qe5
{[%clk 0:00:36.8]} 37... Qd5 {[%clk 0:00:39.8]} 38. Qe2 {[%clk 0:00:29.3]} 38...
Kc7 {[%clk 0:00:37.6]} 39. Qa6 {[%clk 0:00:26.6]} 39... Ra8 {[%clk 0:00:35]} 40.
Qd3 {[%clk 0:00:24.7]} 40... Nc5 {[%clk 0:00:30.4]} 41. Qxh7+ {[%clk 0:00:20.3]}
41... Rd7 {[%clk 0:00:30.5]} 42. Qh6 {[%clk 0:00:20.8]} 42... Nxb3 {[%clk
0:00:30]} 43. Rxb3 {[%clk 0:00:21.7]} 43... Ra1+ {[%clk 0:00:29.5]} 0-1

[Event "*** Titled Tuesday Blitz"]
[Site "Chess.com"]
[Date "2020.04.07"]
[Round "3"]
[White "Chopper1905"]
[Black "Hubbery"]
[Result "1-0"]
[WhiteElo "2856"]
[BlackElo "2626"]
[TimeControl "180+1"]
[EndTime "13:29:43 PDT"]
[Termination "Chopper1905 won on time"]

1. d4 {[%clk 0:03:00.9]} 1... Nf6 {[%clk 0:02:59.5]} 2. c4 {[%clk 0:03:01.1]}
2... e6 {[%clk 0:02:59.6]} 3. Nc3 {[%clk 0:02:59.9]} 3... Bb4 {[%clk 0:02:57.9]}
4. Qc2 {[%clk 0:03:00.1]} 4... O-O {[%clk 0:02:55.7]} 5. e4 {[%clk 0:02:57.6]}
5... d6 {[%clk 0:02:54.1]} 6. e5 {[%clk 0:02:57]} 6... Nfd7 {[%clk 0:02:31.4]}
7. Nf3 {[%clk 0:02:55.3]} 7... h6 {[%clk 0:02:19.3]} 8. a3 {[%clk 0:02:47.5]}
8... Bxc3+ {[%clk 0:02:09.1]} 9. Qxc3 {[%clk 0:02:48.4]} 9... b6 {[%clk
0:02:09.5]} 10. Bf4 {[%clk 0:02:42.2]} 10... Qe7 {[%clk 0:02:05.5]} 11. O-O-O
{[%clk 0:02:27]} 11... Bb7 {[%clk 0:01:54]} 12. Bd3 {[%clk 0:02:26.6]} 12... d5
{[%clk 0:01:47.3]} 13. Bc2 {[%clk 0:02:13.8]} 13... dxc4 {[%clk 0:01:42.5]} 14.
Qxc4 {[%clk 0:02:14.7]} 14... Rc8 {[%clk 0:01:42.7]} 15. Qd3 {[%clk 0:02:05.3]}
15... Nf8 {[%clk 0:01:41]} 16. Kb1 {[%clk 0:02:04.1]} 16... Nbd7 {[%clk
0:01:39.4]} 17. h4 {[%clk 0:01:49.6]} 17... c5 {[%clk 0:01:38.4]} 18. h5 {[%clk
0:01:48.1]} 18... cxd4 {[%clk 0:01:35.3]} 19. Nxd4 {[%clk 0:01:47.1]} 19... Nc5
{[%clk 0:01:31.4]} 20. Qe3 {[%clk 0:01:42.8]} 20... Nh7 {[%clk 0:00:57.7]} 21.
Bxh6 {[%clk 0:01:09.2]} 21... gxh6 {[%clk 0:00:56.8]} 22. Qxh6 {[%clk
0:01:10.1]} 22... Be4 {[%clk 0:00:57.3]} 23. Bxe4 {[%clk 0:00:46.2]} 23... Nxe4
{[%clk 0:00:58.2]} 24. Qf4 {[%clk 0:00:46.8]} 24... Neg5 {[%clk 0:00:45.3]} 25.
Qe3 {[%clk 0:00:45.9]} 25... Qb7 {[%clk 0:00:42.3]} 26. Rh4 {[%clk 0:00:44.7]}
26... Kh8 {[%clk 0:00:20.1]} 27. Rg4 {[%clk 0:00:44.7]} 27... Rg8 {[%clk
0:00:19.7]} 28. Nb5 {[%clk 0:00:45.2]} 28... Raf8 {[%clk 0:00:13.4]} 29. Nd6
{[%clk 0:00:45.1]} 29... Qc6 {[%clk 0:00:14]} 30. f4 {[%clk 0:00:42.2]} 30...
Ne4 {[%clk 0:00:07]} 31. Rxg8+ {[%clk 0:00:40.4]} 31... Rxg8 {[%clk 0:00:07.9]}
32. Qxe4 {[%clk 0:00:32]} 32... Qxe4+ {[%clk 0:00:07.1]} 33. Nxe4 {[%clk
0:00:32.9]} 33... Rxg2 {[%clk 0:00:08]} 34. h6 {[%clk 0:00:33.5]} 34... Nf8
{[%clk 0:00:03.9]} 35. Rd8 {[%clk 0:00:32.4]} 35... Rg8 {[%clk 0:00:03.8]} 36.
Nf6 {[%clk 0:00:32.9]} 36... Rg1+ {[%clk 0:00:03.9]} 37. Ka2 {[%clk 0:00:32.6]}
1-0

[Event "*** Titled Tuesday Blitz"]
[Site "Chess.com"]
[Date "2020.04.07"]
[Round "3"]
[White "kingmonkey2006"]
[Black "FrankieJay"]
[Result "1-0"]
[WhiteElo "2635"]
[BlackElo "2406"]
[TimeControl "180+1"]
[EndTime "13:29:44 PDT"]
[Termination "kingmonkey2006 won on time"]

1. b3 {[%clk 0:03:00.7]} 1... e5 {[%clk 0:02:59.8]} 2. Bb2 {[%clk 0:03:00.6]}
2... Nc6 {[%clk 0:03:00.4]} 3. e3 {[%clk 0:03:00.7]} 3... Nf6 {[%clk 0:03:01]}
4. Bb5 {[%clk 0:03:00.7]} 4... Bd6 {[%clk 0:03:01.5]} 5. Na3 {[%clk 0:03:00.6]}
5... Na5 {[%clk 0:03:01.9]} 6. Be2 {[%clk 0:03:00.3]} 6... a6 {[%clk 0:02:57.6]}
7. c4 {[%clk 0:03:00.3]} 7... Nc6 {[%clk 0:02:53.5]} 8. d3 {[%clk 0:02:59.6]}
8... O-O {[%clk 0:02:52.3]} 9. Nc2 {[%clk 0:02:59.4]} 9... Re8 {[%clk
0:02:52.5]} 10. e4 {[%clk 0:02:55.1]} 10... Bc5 {[%clk 0:02:45.1]} 11. Nf3
{[%clk 0:02:51.2]} 11... d6 {[%clk 0:02:44.9]} 12. O-O {[%clk 0:02:51.4]} 12...
Bg4 {[%clk 0:02:34.2]} 13. Nd2 {[%clk 0:02:44.7]} 13... Qd7 {[%clk 0:02:20.4]}
14. a3 {[%clk 0:02:41.7]} 14... a5 {[%clk 0:02:14.4]} 15. h3 {[%clk 0:02:38.7]}
15... Bxe2 {[%clk 0:01:56.2]} 16. Qxe2 {[%clk 0:02:38.8]} 16... Qe6 {[%clk
0:01:51.3]} 17. Kh1 {[%clk 0:02:35]} 17... Nd7 {[%clk 0:01:46.7]} 18. f4 {[%clk
0:02:34.3]} 18... exf4 {[%clk 0:01:46.8]} 19. Rxf4 {[%clk 0:02:35.2]} 19... Bb6
{[%clk 0:01:12.2]} 20. d4 {[%clk 0:02:23.4]} 20... Qh6 {[%clk 0:01:10]} 21. Raf1
{[%clk 0:02:18.1]} 21... Re7 {[%clk 0:01:04.8]} 22. Ne3 {[%clk 0:02:11]} 22...
Bxd4 {[%clk 0:00:56.1]} 23. Nf5 {[%clk 0:02:09.7]} 23... Qf6 {[%clk 0:00:48]}
24. Nxd4 {[%clk 0:01:52.5]} 24... Nxd4 {[%clk 0:00:48.1]} 25. Qd3 {[%clk
0:01:51.8]} 25... Nc5 {[%clk 0:00:33.8]} 26. Qxd4 {[%clk 0:01:24.5]} 26... Qxd4
{[%clk 0:00:33.5]} 27. Bxd4 {[%clk 0:01:25.4]} 27... Ne6 {[%clk 0:00:34.2]} 28.
Bc3 {[%clk 0:01:23.6]} 28... Nxf4 {[%clk 0:00:33]} 29. Rxf4 {[%clk 0:01:24.5]}
29... a4 {[%clk 0:00:22.3]} 30. b4 {[%clk 0:01:23.5]} 30... c6 {[%clk
0:00:14.5]} 31. Rg4 {[%clk 0:01:19.6]} 31... g6 {[%clk 0:00:13.8]} 32. h4 {[%clk
0:01:19]} 32... h5 {[%clk 0:00:11.9]} 33. Rf4 {[%clk 0:01:18.4]} 33... b5 {[%clk
0:00:11.7]} 34. Kg1 {[%clk 0:00:49.7]} 34... bxc4 {[%clk 0:00:08.6]} 35. Nxc4
{[%clk 0:00:48.7]} 35... d5 {[%clk 0:00:09]} 36. exd5 {[%clk 0:00:43.3]} 36...
cxd5 {[%clk 0:00:09.1]} 37. Nb6 {[%clk 0:00:44]} 37... Ra6 {[%clk 0:00:03.7]}
38. Nxd5 {[%clk 0:00:43.6]} 38... Re2 {[%clk 0:00:03]} 39. Bd4 {[%clk
0:00:37.7]} 1-0

[Event "*** Titled Tuesday Blitz"]
[Site "Chess.com"]
[Date "2020.04.07"]
[Round "3"]
[White "JozefKneht"]
[Black "Lysiak_Poltorak"]
[Result "0-1"]
[WhiteElo "2585"]
[BlackElo "2356"]
[TimeControl "180+1"]
[EndTime "13:29:44 PDT"]
[Termination "Lysiak_Poltorak won by checkmate"]

1. e4 {[%clk 0:03:00.9]} 1... c6 {[%clk 0:02:59.4]} 2. d4 {[%clk 0:03:00]} 2...
d5 {[%clk 0:02:59.6]} 3. Nc3 {[%clk 0:03:00.5]} 3... dxe4 {[%clk 0:02:59.4]} 4.
Nxe4 {[%clk 0:03:01.4]} 4... Bf5 {[%clk 0:02:59.5]} 5. Ng3 {[%clk 0:03:01.9]}
5... Bg6 {[%clk 0:02:59.9]} 6. h4 {[%clk 0:03:02.8]} 6... h6 {[%clk 0:02:59.8]}
7. Nf3 {[%clk 0:03:03.7]} 7... Nd7 {[%clk 0:02:59.4]} 8. h5 {[%clk 0:03:04.2]}
8... Bh7 {[%clk 0:02:59.1]} 9. Bd3 {[%clk 0:03:04.9]} 9... Bxd3 {[%clk
0:02:59.6]} 10. Qxd3 {[%clk 0:03:05.8]} 10... e6 {[%clk 0:03:00.3]} 11. Bf4
{[%clk 0:03:06.4]} 11... Qa5+ {[%clk 0:02:58.9]} 12. c3 {[%clk 0:03:06.9]} 12...
Ngf6 {[%clk 0:02:53.8]} 13. Ne5 {[%clk 0:03:07.2]} 13... Nxe5 {[%clk 0:02:48.4]}
14. dxe5 {[%clk 0:03:06.4]} 14... Nd5 {[%clk 0:02:48.2]} 15. Bd2 {[%clk
0:03:06.1]} 15... O-O-O {[%clk 0:02:39.8]} 16. Qe2 {[%clk 0:02:55.8]} 16... Qb6
{[%clk 0:02:31.4]} 17. O-O-O {[%clk 0:02:51]} 17... Be7 {[%clk 0:02:22.3]} 18.
Ne4 {[%clk 0:02:48.6]} 18... Rd7 {[%clk 0:02:22.4]} 19. c4 {[%clk 0:02:41.3]}
19... Nb4 {[%clk 0:02:15.9]} 20. Bxb4 {[%clk 0:02:40.1]} 20... Rxd1+ {[%clk
0:01:48.3]} 21. Rxd1 {[%clk 0:02:37.2]} 21... Qxb4 {[%clk 0:01:46.8]} 22. f4
{[%clk 0:02:23.2]} 22... Qb6 {[%clk 0:01:30.7]} 23. Kc2 {[%clk 0:02:08.5]} 23...
a5 {[%clk 0:01:20.6]} 24. g4 {[%clk 0:01:54.1]} 24... Rd8 {[%clk 0:01:17.8]} 25.
Rxd8+ {[%clk 0:01:52.5]} 25... Kxd8 {[%clk 0:01:15.2]} 26. Qd2+ {[%clk
0:01:48.1]} 26... Kc8 {[%clk 0:01:04.6]} 27. f5 {[%clk 0:01:44.7]} 27... Qg1
{[%clk 0:00:56.5]} 28. f6 {[%clk 0:01:39.5]} 28... gxf6 {[%clk 0:00:53.5]} 29.
exf6 {[%clk 0:01:38]} 29... Bf8 {[%clk 0:00:50.8]} 30. Nd6+ {[%clk 0:01:12.4]}
30... Bxd6 {[%clk 0:00:48.3]} 31. Qxd6 {[%clk 0:01:11.1]} 31... Qf2+ {[%clk
0:00:47.3]} 32. Kb3 {[%clk 0:01:09.5]} 32... Qxf6 {[%clk 0:00:45.3]} 33. Ka3
{[%clk 0:00:48.9]} 33... Qd8 {[%clk 0:00:35.5]} 34. Qf4 {[%clk 0:00:43.4]} 34...
b5 {[%clk 0:00:26.7]} 35. cxb5 {[%clk 0:00:29.2]} 35... cxb5 {[%clk 0:00:27.6]}
36. Qxh6 {[%clk 0:00:18.1]} 36... Qd6+ {[%clk 0:00:26]} 37. Kb3 {[%clk
0:00:17.8]} 37... Qd3# {[%clk 0:00:24.9]} 0-1